bitfinex-derivatives/quotes_BNBF0:USTF0_20250529
["timestamp","ask_amount","ask_price","bid_price","bid_amount"]
[1748499216944,0.29301882,682.55,681.73,0.57524191]
[1748499217146,0.29301882,682.55,681.74,0.57524191]
[1748499217344,0.29301882,682.55,681.75,0.57524379]
[1748499217548,0.29301882,682.55,681.76,0.57524379]
[1748499217843,0.29301882,682.55,681.77,0.57524379]
[1748499218047,0.29301882,682.55,681.78,0.57524379]
[1748499218247,0.29301882,682.55,681.79,0.57524379]
[1748499218548,0.29301882,682.55,681.8,0.57535326]
[1748499218749,0.29301882,682.55,681.81,0.57535803]
[1748499218943,0.29301882,682.55,681.82,0.57535803]
[1748499219149,0.29301882,682.55,681.83,0.57538033]
[1748499219348,0.29301882,682.55,681.72,0.57501589]
[1748499219548,0.29301882,682.55,681.73,0.57538043]
[1748499219745,0.29301882,682.55,681.74,0.57538051]
[1748499219950,0.29301882,682.55,681.75,0.57538051]
[1748499220247,0.29301882,682.55,681.76,0.57538051]
[1748499220451,0.29301882,682.55,681.77,0.57538051]
[1748499220749,0.29301882,682.55,681.78,0.57580989]
[1748499220947,0.29301882,682.55,681.79,0.57580826]
[1748499221150,0.29301882,682.55,681.8,0.57580826]
[1748499221350,0.29301882,682.55,681.81,0.57580826]
[1748499221552,0.29301882,682.55,681.82,0.57580826]
[1748499221745,0.29301882,682.55,681.83,0.57580826]
[1748499222047,0.29301882,682.55,681.72,0.57501589]
[1748499222246,0.29301882,682.55,681.73,0.57584868]
[1748499222552,0.29301882,682.55,681.74,0.5758827]
[1748499222752,0.29301882,682.55,681.75,0.5758827]
[1748499222948,0.29301882,682.55,681.76,0.5758827]
[1748499223146,0.29301882,682.55,681.77,0.5758827]
[1748499223348,0.29301882,682.55,681.72,0.57501589]
[1748499224450,0.29301882,682.55,681.73,0.57602305]
[1748499224650,0.29301882,682.55,681.74,0.57602388]
[1748499224851,0.29301882,682.55,681.72,0.57501589]
[1748499225447,0.29301882,682.55,681.73,0.57615479]
[1748499225650,0.29301882,682.55,681.72,0.57501589]
[1748499225850,0.29301882,682.55,681.73,0.57615313]
[1748499226051,0.29301882,682.55,681.74,0.57615313]
[1748499226247,0.29301882,682.55,681.75,1.04306556]
[1748499226453,0.29301882,682.55,681.76,0.57615313]
[1748499226646,0.29301882,682.55,681.75,0.46691243]
[1748499226647,0.29301882,682.55,681.77,0.57615313]
[1748499226852,0.29301882,682.55,681.78,0.57630026]
[1748499227051,0.29301882,682.55,681.79,0.57630026]
[1748499227252,0.29301882,682.55,681.8,0.57629837]
[1748499227452,0.29301882,682.55,681.81,0.57629837]
[1748499227648,0.29301882,682.55,681.82,0.57647145]
[1748499227851,0.29301882,682.55,681.83,0.57647145]
[1748499228152,0.29301882,682.55,681.75,0.46691243]
[1748499228153,0.29301882,682.55,681.84,0.57648577]
[1748499228352,0.29301882,682.55,681.85,0.57648567]
[1748499228651,0.29301882,682.55,681.86,0.57668788]
[1748499228851,0.29301882,682.55,681.87,0.57668788]
[1748499229049,0.29301882,682.55,681.88,0.57668788]
[1748499229252,0.29301882,682.55,681.89,0.57681471]
[1748499229453,0.29301882,682.55,681.9,0.57681923]
[1748499229649,0.29301882,682.55,681.91,0.57682716]
[1748499229853,0.29301882,682.55,681.76,0.46691243]
[1748499229854,0.29301882,682.55,681.92,0.57682716]
[1748499230055,0.29301882,682.55,681.93,0.57682716]
[1748499230354,0.29301882,682.55,681.94,0.57682492]
[1748499230557,0.29301882,682.55,681.95,0.57682779]
[1748499230756,0.29301882,682.55,681.96,0.57682779]
[1748499230957,0.29301882,682.55,681.97,0.57682582]
[1748499231253,0.29301882,682.55,681.98,0.57682582]
[1748499231453,0.29301882,682.55,681.99,0.57682582]
[1748499231653,0.29301882,682.55,681.93,0.504]
[1748499231654,0.29301882,682.55,682.0,0.57687608]
[1748499231858,0.29301882,682.55,682.01,0.57687608]
[1748499232157,0.29301882,682.55,682.02,0.57689527]
[1748499232353,0.29301882,682.55,681.93,0.504]
[1748499232553,0.29301882,682.55,681.94,0.57688219]
[1748499232757,0.29301882,682.55,681.95,0.57688219]
[1748499232957,0.29301882,682.55,681.96,0.57688219]
[1748499233256,0.29301882,682.55,681.97,0.57688219]
[1748499233457,0.29301882,682.55,681.98,0.57687069]
[1748499233658,0.29301882,682.55,681.99,0.57687069]
[1748499233858,0.29301882,682.55,681.93,0.504]
[1748499234052,0.29301882,682.55,681.94,0.57686043]
[1748499234256,0.29301882,682.55,681.93,0.504]
[1748499234257,0.29301882,682.55,681.95,0.57686049]
[1748499234456,0.29301882,682.55,681.96,0.57686049]
[1748499234657,0.29301882,682.55,681.97,0.57685909]
[1748499234858,0.29301882,682.55,681.98,0.57685909]
[1748499235058,0.29301882,682.55,681.99,0.57685909]
[1748499235357,0.29301882,682.55,682.0,0.57685909]
[1748499235561,0.29301882,682.55,682.01,0.57685933]
[1748499235756,0.29301882,682.55,682.02,0.57685484]
[1748499236056,0.29301882,682.55,682.03,0.57686141]
[1748499236261,0.29301882,682.55,682.04,0.57686141]
[1748499236457,0.29301882,682.55,682.05,0.57686141]
[1748499236660,0.29301882,682.55,682.06,0.57686141]
[1748499236857,0.29301882,682.55,682.07,0.57686141]
[1748499237060,0.29301882,682.55,681.93,0.504]
[1748499237262,0.29301882,682.55,681.94,0.57683867]
[1748499237557,0.29301882,682.55,681.95,0.57683867]
[1748499237757,0.29301882,682.55,681.96,0.57681603]
[1748499238056,0.29301882,682.55,681.97,0.57681603]
[1748499238261,0.29301882,682.55,681.98,0.57681371]
[1748499238461,0.29301882,682.55,681.99,0.57681371]
[1748499238662,0.29301882,682.55,682.0,0.57681134]
[1748499238856,0.29301882,682.55,682.01,0.57681048]
[1748499239061,0.29301882,682.55,682.02,0.57680074]
[1748499239356,0.29301882,682.55,681.93,0.504]
[1748499239757,0.29301882,682.55,681.94,0.57679846]
[1748499239957,0.29301882,682.55,681.93,0.504]
[1748499240161,0.29301882,682.55,681.94,0.57678966]
[1748499240357,0.29301882,682.55,681.95,0.57678966]
[1748499240558,0.29301882,682.55,681.93,0.504]
[1748499242364,0.29301882,682.55,681.94,0.57676173]
[1748499242660,0.29301882,682.55,681.93,0.504]
[1748499244366,0.29301882,682.55,681.94,0.5767121]
[1748499244562,0.29301882,682.55,681.93,0.504]
[1748499245461,0.29301882,682.55,681.94,0.57671658]
[1748499245660,0.29301882,682.55,681.93,0.504]
[1748499246760,0.29301882,682.55,681.94,0.57672183]
[1748499246960,0.29301882,682.55,681.95,0.57674156]
[1748499247167,0.29301882,682.55,681.93,0.504]
[1748499247566,0.29301882,682.55,681.94,0.57674343]
[1748499247861,0.29301882,682.55,681.93,0.504]
[1748499248065,0.29301882,682.55,681.94,0.57674359]
[1748499248265,0.29301882,682.55,681.93,0.504]
[1748499248765,0.29301882,682.55,681.94,0.57675644]
[1748499248963,0.29301882,682.55,681.93,0.504]
[1748499249666,0.29301882,682.55,681.94,0.57675182]
[1748499249866,0.29301882,682.55,681.93,0.504]
[1748499250066,0.29301882,682.55,681.94,0.57676398]
[1748499250266,0.29301882,682.55,681.93,0.504]
[1748499251969,0.29301882,682.55,681.94,0.57678414]
[1748499252168,0.29301882,682.55,681.95,0.57678414]
[1748499252365,0.29301882,682.55,681.93,0.504]
[1748499252763,0.29301882,682.55,681.94,0.57681321]
[1748499252971,0.29301882,682.55,681.93,0.504]
[1748499253965,0.29301882,682.55,681.94,0.57684206]
[1748499254270,0.29301882,682.55,681.93,0.504]
[1748499255471,0.29301882,682.55,681.94,0.57668397]
[1748499255770,0.29301882,682.55,681.93,0.504]
[1748499257974,0.29301882,682.55,681.94,0.57705072]
[1748499258170,0.29301882,682.55,681.93,0.504]
[1748499258369,0.29301882,682.55,681.94,0.57704738]
[1748499258570,0.29301882,682.55,681.93,0.504]
[1748499259273,0.29301882,682.55,681.72,0.57501589]
[1748499261375,0.29301882,682.55,681.73,0.57645036]
[1748499261575,0.29301882,682.55,681.72,0.57501589]
[1748499261975,0.29301882,682.55,681.73,0.4]
[1748499262372,0.29301882,682.55,681.74,1.02547284]
[1748499262576,0.29301882,682.55,681.74,0.449]
[1748499264777,0.29301882,682.55,681.75,0.57646276]
[1748499264973,0.29301882,682.55,681.74,0.449]
[1748499265473,0.29301882,682.55,681.75,0.57650761]
[1748499265678,0.29301882,682.55,681.74,0.449]
[1748499265873,0.29301882,682.55,681.75,0.57650405]
[1748499266077,0.29301882,682.55,681.76,0.57650492]
[1748499266274,0.29301882,682.55,681.77,0.57650492]
[1748499266475,0.29301882,682.55,681.78,0.57650954]
[1748499266779,0.29301882,682.55,681.79,0.57650954]
[1748499266974,0.29301882,682.55,681.8,0.57650954]
[1748499267278,0.29301882,682.55,681.74,0.449]
[1748499267279,0.29301882,682.55,681.81,0.57650954]
[1748499267478,0.29301882,682.55,681.74,0.449]
[1748499267479,0.29301882,682.55,681.82,0.57650954]
[1748499267674,0.29301882,682.55,681.83,0.57650954]
[1748499267877,0.29301882,682.55,681.84,0.57650954]
[1748499268077,0.29301882,682.55,681.85,0.57650954]
[1748499268277,0.29301882,682.55,681.86,0.57608839]
[1748499268482,0.29301882,682.55,681.87,0.57566295]
[1748499268679,0.29301882,682.55,681.74,0.449]
[1748499269378,0.29301882,682.55,681.75,0.5756664]
[1748499269581,0.29301882,682.55,681.74,0.449]
[1748499269582,0.29301882,682.55,681.76,0.5756664]
[1748499269782,0.29301882,682.55,681.77,0.5756664]
[1748499269982,0.29301882,682.55,681.74,0.449]
[1748499270183,0.29301882,682.55,681.75,0.57565902]
[1748499270383,0.29301882,682.55,681.76,0.57565902]
[1748499270679,0.29301882,682.55,681.77,0.57537587]
[1748499270879,0.29301882,682.55,681.78,0.57541117]
[1748499271083,0.29301882,682.55,681.74,0.449]
[1748499271280,0.29301882,682.55,681.75,0.57540339]
[1748499271489,0.29301882,682.55,681.76,0.57540339]
[1748499271686,0.29301882,682.55,681.74,0.449]
[1748499271687,0.29301882,682.55,681.77,0.5751212]
[1748499271882,0.29301882,682.55,681.78,0.5751212]
[1748499272185,0.29301882,682.55,681.79,0.5751212]
[1748499272386,0.29301882,682.55,681.8,0.5751212]
[1748499272686,0.29301882,682.55,681.74,0.449]
[1748499272687,0.29301882,682.55,681.81,0.57490432]
[1748499272883,0.29301882,682.55,681.82,0.57490432]
[1748499273087,0.29301882,682.55,681.83,0.57490432]
[1748499273285,0.29301882,682.55,681.74,0.449]
[1748499273484,0.29301882,682.55,681.75,0.57485065]
[1748499273681,0.29301882,682.55,681.76,0.57485065]
[1748499273883,0.29301882,682.55,681.77,0.57470467]
[1748499274086,0.29301882,682.55,681.78,0.57470467]
[1748499274282,0.29301882,682.55,681.79,0.57456406]
[1748499274484,0.29301882,682.55,681.8,0.57445249]
[1748499274795,0.29301882,682.55,681.81,0.57443956]
[1748499274985,0.29301882,682.55,681.82,0.57443956]
[1748499275181,0.29301882,682.55,681.83,0.57444349]
[1748499275387,0.29301882,682.55,681.74,0.449]
[1748499275583,0.29301882,682.55,681.75,0.57444188]
[1748499275887,0.29301882,682.55,681.74,0.449]
[1748499276083,0.29301882,682.55,681.75,0.57440541]
[1748499276387,0.29301882,682.55,681.74,0.449]
[1748499276587,0.29301882,682.55,681.75,0.57440349]
[1748499276885,0.29301882,682.55,681.74,0.449]
[1748499277088,0.29301882,682.55,681.75,0.5742338]
[1748499277386,0.29301882,682.55,681.76,0.57428598]
[1748499277587,0.29301882,682.55,681.74,0.449]
[1748499279687,0.29301882,682.55,681.75,0.5741665]
[1748499279987,0.29301882,682.55,681.74,0.449]
[1748499281083,0.29301882,682.55,681.75,0.57398786]
[1748499281288,0.29301882,682.55,681.74,0.449]
[1748499281995,0.29301882,682.55,681.75,0.57397859]
[1748499282193,0.29301882,682.55,681.74,0.449]
[1748499282688,0.29301882,682.55,681.75,0.57396718]
[1748499282890,0.29301882,682.55,681.76,0.57396718]
[1748499283094,0.29301882,682.55,681.74,0.449]
[1748499283295,0.29301882,682.55,681.75,0.57406303]
[1748499283593,0.29301882,682.55,681.76,0.57405412]
[1748499283793,0.29301882,682.55,681.77,0.57405369]
[1748499283993,0.29301882,682.55,681.78,0.57404156]
[1748499284189,0.29301882,682.55,681.79,0.57404156]
[1748499284392,0.29301882,682.55,681.8,0.57404779]
[1748499284594,0.29301882,682.55,681.81,0.57413592]
[1748499284789,0.29301882,682.55,681.82,0.57413592]
[1748499285089,0.29301882,682.55,681.83,0.57413592]
[1748499285295,0.29301882,682.55,681.84,0.57413784]
[1748499285496,0.29301882,682.55,681.74,0.449]
[1748499285790,0.29301882,682.55,681.75,0.57428456]
[1748499285990,0.29301882,682.55,681.76,0.57428456]
[1748499286190,0.29301882,682.55,681.77,0.57428456]
[1748499286390,0.29301882,682.55,681.78,0.57428456]
[1748499286592,0.29301882,682.55,681.79,0.57432634]
[1748499286793,0.29301882,682.55,681.8,0.57432634]
[1748499286990,0.29301882,682.55,681.81,0.57432634]
[1748499287295,0.29301882,682.55,681.82,0.57432304]
[1748499287495,0.29301882,682.55,681.83,0.57431529]
[1748499287692,0.29301882,682.55,681.74,0.449]
[1748499291496,0.29301882,682.55,681.75,0.57450376]
[1748499291697,0.29301882,682.55,681.74,0.449]
[1748499292801,0.29301882,682.55,681.75,0.57456294]
[1748499292997,0.29301882,682.55,681.76,0.57458596]
[1748499293202,0.29301882,682.55,681.75,0.57456294]
[1748499295403,0.29301882,682.55,681.76,0.5748986]
[1748499295600,0.29301882,682.55,681.75,0.57456294]
[1748499296699,0.29301882,682.55,681.76,0.57508046]
[1748499296900,0.29301882,682.55,681.77,0.57508028]
[1748499297102,0.29301882,682.55,681.75,0.57456294]
[1748499297504,0.29301882,682.55,681.76,0.57497377]
[1748499297701,0.29301882,682.55,681.75,0.57456294]
[1748499297702,0.29301882,682.55,681.77,0.57497377]
[1748499297901,0.29301882,682.55,681.75,0.57456294]
[1748499297902,0.29301882,682.55,681.78,0.57497377]
[1748499298102,0.29301882,682.55,681.79,0.57497377]
[1748499298302,0.29301882,682.55,681.75,0.57456294]
[1748499299007,0.29301882,682.55,681.76,0.57567446]
[1748499299201,0.29301882,682.55,681.75,0.57456294]
[1748499299608,0.29301882,682.55,681.76,0.57567675]
[1748499299807,0.29301882,682.55,681.75,0.57456294]
[1748499300509,0.29301882,682.55,681.76,0.545]
[1748499300909,0.29301882,682.55,681.77,0.57558577]
[1748499301110,0.29301882,682.55,681.76,0.545]
[1748499301111,0.29301882,682.55,681.78,0.57558405]
[1748499301407,0.29301882,682.55,681.79,0.57548552]
[1748499301610,0.29301882,682.55,681.8,0.57548562]
[1748499301910,0.29301882,682.55,681.81,0.57548562]
[1748499302105,0.29301882,682.55,681.82,0.57548562]
[1748499302308,0.29301882,682.55,681.83,0.57548562]
[1748499302605,0.29301882,682.55,681.84,0.57569433]
[1748499302809,0.29301882,682.55,681.85,0.57573579]
[1748499303008,0.29301882,682.55,681.76,0.545]
[1748499303009,0.29301882,682.55,681.86,0.57573765]
[1748499303206,0.29301882,682.55,681.87,0.57573765]
[1748499303510,0.29301882,682.55,681.88,0.57573765]
[1748499303709,0.29301882,682.55,681.89,0.57573765]
[1748499303905,0.29301882,682.55,681.76,0.545]
[1748499304312,0.29301882,682.55,681.77,0.57574444]
[1748499304511,0.29301882,682.55,681.78,0.57574444]
[1748499304711,0.29301882,682.55,681.79,0.57574444]
[1748499305007,0.29301882,682.55,681.8,0.57574444]
[1748499305211,0.29301882,682.55,681.81,0.5758039]
[1748499305411,0.29301882,682.55,681.82,0.57584371]
[1748499305607,0.29301882,682.55,681.83,0.57586599]
[1748499305811,0.29301882,682.55,681.84,0.57603144]
[1748499306011,0.29301882,682.55,681.85,0.57602741]
[1748499306312,0.29301882,682.55,681.86,0.57603156]
[1748499306507,0.29301882,682.55,681.84,0.57603144]
[1748499306707,0.29301882,682.55,681.85,0.57604186]
[1748499306911,0.29301882,682.55,681.86,0.57609605]
[1748499307112,0.29301882,682.55,681.87,0.57609605]
[1748499307310,0.29301882,682.55,681.84,0.57603144]
[1748499307311,0.29301882,682.55,681.88,0.57609605]
[1748499307611,0.29301882,682.55,681.89,0.57607635]
[1748499307806,0.29301882,682.55,681.9,0.57592612]
[1748499308006,0.29301882,682.55,681.91,0.57592047]
[1748499308208,0.29301882,682.55,681.92,0.57592047]
[1748499308409,0.29301882,682.55,681.84,0.57603144]
[1748499308410,0.29301882,682.55,681.93,0.57592047]
[1748499308610,0.29301882,682.55,681.94,0.57580844]
[1748499308911,0.29301882,682.55,681.84,0.57603144]
[1748499309111,0.29301882,682.55,681.85,0.57580601]
[1748499309412,0.29301882,682.55,681.86,0.57580612]
[1748499309610,0.29301882,682.55,681.87,0.57580612]
[1748499309809,0.29301882,682.55,681.88,0.57580612]
[1748499310006,0.29301882,682.55,681.89,0.57580612]
[1748499310206,0.29301882,682.55,681.9,0.57580612]
[1748499310407,0.29301882,682.55,681.91,0.57572562]
[1748499310608,0.29301882,682.55,681.87,0.37]
[1748499310808,0.29301882,682.55,681.88,0.57559245]
[1748499311012,0.29301882,682.55,681.87,0.37]
[1748499311409,0.29301882,682.55,681.88,0.57559707]
[1748499311608,0.29301882,682.55,681.89,0.57559707]
[1748499311807,0.29301882,682.55,681.9,0.57558937]
[1748499312006,0.29301882,682.55,681.87,0.37]
[1748499312007,0.29301882,682.55,681.91,0.57558937]
[1748499312211,0.29301882,682.55,681.92,0.57559345]
[1748499312507,0.29301882,682.55,681.87,0.37]
[1748499312709,0.29301882,682.55,681.88,0.57555004]
[1748499312912,0.29301882,682.55,681.89,0.57555004]
[1748499313110,0.29301882,682.55,681.9,0.57554746]
[1748499313309,0.29301882,682.55,681.91,0.57554746]
[1748499313508,0.29301882,682.55,681.92,0.57554746]
[1748499313708,0.29301882,682.55,681.87,0.37]
[1748499313911,0.29301882,682.55,681.88,0.5755161]
[1748499314111,0.29301882,682.55,681.89,0.5755161]
[1748499314313,0.29301882,682.55,681.9,0.5755161]
[1748499314511,0.29301882,682.55,681.91,0.57552104]
[1748499314715,0.29301882,682.55,681.92,0.57552104]
[1748499314914,0.29301882,682.55,681.87,0.37]
[1748499315411,0.29301882,682.55,681.88,0.57550535]
[1748499315713,0.29301882,682.55,681.87,0.37]
[1748499315909,0.29301882,682.55,681.88,0.57548815]
[1748499316107,0.29301882,682.55,681.87,0.37]
[1748499316108,0.29301882,682.55,681.89,0.57548148]
[1748499316310,0.29301882,682.55,681.9,0.57548148]
[1748499316512,0.29301882,682.55,681.91,0.57547935]
[1748499316711,0.29301882,682.55,681.92,0.5754825]
[1748499316911,0.29301882,682.55,681.87,0.37]
[1748499317111,0.29301882,682.55,681.88,0.57547786]
[1748499317315,0.29301882,682.55,681.87,0.37]
[1748499317515,0.29301882,682.55,681.88,0.5754774]
[1748499317715,0.29301882,682.55,681.89,0.5754683]
[1748499317911,0.29301882,682.55,681.9,0.5754683]
[1748499318110,0.29301882,682.55,681.91,0.5754683]
[1748499318316,0.29301882,682.55,681.87,0.37]
[1748499318518,0.29301882,682.55,681.88,0.57524261]
[1748499318716,0.29301882,682.55,681.89,0.57524261]
[1748499318916,0.29301882,682.55,681.9,0.57524261]
[1748499319117,0.29301882,682.55,681.87,0.37]
[1748499319317,0.29301882,682.55,681.88,0.57527771]
[1748499319516,0.29301882,682.55,681.89,0.57525823]
[1748499319715,0.29301882,682.55,681.9,0.57525823]
[1748499319919,0.29301882,682.55,681.91,0.57525823]
[1748499320118,0.29301882,682.55,681.92,0.57528195]
[1748499320315,0.29301882,682.55,681.93,0.57528128]
[1748499320615,0.29301882,682.55,681.94,0.57527881]
[1748499320814,0.29301882,682.55,681.95,0.5752875]
[1748499321014,0.29301882,682.55,681.87,0.37]
[1748499321418,0.29301882,682.55,681.88,0.57529021]
[1748499321618,0.29301882,682.55,681.87,0.37]
[1748499323019,0.29301882,682.55,681.88,0.57529144]
[1748499323217,0.29301882,682.55,681.87,0.37]
[1748499323421,0.29301882,682.55,681.88,0.57529258]
[1748499323622,0.29301882,682.55,681.89,0.57529258]
[1748499323822,0.29301882,682.55,681.9,0.57529258]
[1748499324022,0.29301882,682.55,681.87,0.37]
[1748499324023,0.29301882,682.55,681.91,0.57532919]
[1748499324224,0.29301882,682.55,681.92,0.57532919]
[1748499324522,0.29301882,682.55,681.93,0.57532919]
[1748499324723,0.29301882,682.55,681.94,0.57532919]
[1748499325022,0.29301882,682.55,681.95,0.5753496]
[1748499325220,0.29301882,682.55,681.96,0.57534885]
[1748499325623,0.29301882,682.55,681.87,0.37]
[1748499325624,0.29301882,682.55,681.97,0.57529517]
[1748499325923,0.29301882,682.55,681.87,0.37]
[1748499326125,0.29301882,682.55,681.88,0.57533106]
[1748499326423,0.29301882,682.55,681.89,0.57533106]
[1748499326624,0.29301882,682.55,681.9,0.57536166]
[1748499326821,0.29301882,682.55,681.91,0.57536166]
[1748499327019,0.29301882,682.55,681.92,0.57600141]
[1748499327224,0.29301882,682.55,681.93,0.575999]
[1748499327523,0.29301882,682.55,681.94,0.57595489]
[1748499327725,0.29301882,682.55,681.95,0.57595489]
[1748499327921,0.29301882,682.55,681.87,0.37]
[1748499328226,0.29301882,682.55,681.88,0.57596024]
[1748499328421,0.29301882,682.55,681.89,0.57596024]
[1748499328621,0.29301882,682.55,681.87,0.37]
[1748499328622,0.29301882,682.55,681.9,0.57596024]
[1748499328825,0.29301882,682.55,681.91,0.57596413]
[1748499329019,0.29301882,682.55,681.92,0.57596413]
[1748499329221,0.29301882,682.55,681.93,0.57596413]
[1748499329423,0.29301882,682.55,681.94,0.5759576]
[1748499330223,0.29301882,682.55,681.95,0.57596802]
[1748499330521,0.29301882,682.55,681.94,0.5759576]
[1748499331722,0.29301882,682.55,681.95,0.57590355]
[1748499331926,0.29301882,682.55,681.96,0.57588516]
[1748499332127,0.29301882,682.55,681.94,0.5759576]
[1748499332128,0.29301882,682.55,681.97,0.57590955]
[1748499332327,0.29301882,682.55,681.98,0.57591051]
[1748499332529,0.29301882,682.55,681.99,0.57583785]
[1748499332728,0.29301882,682.55,682.0,0.57583785]
[1748499332930,0.29301882,682.55,682.01,0.57588324]
[1748499333228,0.29301882,682.55,681.97,0.365]
[1748499333431,0.29301882,682.55,681.98,0.57593785]
[1748499333629,0.29301882,682.55,681.99,0.57587743]
[1748499333824,0.29301882,682.55,682.0,0.57587019]
[1748499334124,0.29301882,682.55,682.01,0.57587016]
[1748499334331,0.29301882,682.55,682.02,0.57582675]
[1748499334530,0.29301882,682.55,682.03,0.57582675]
[1748499334829,0.29301882,682.55,681.97,0.365]
[1748499335027,0.29301882,682.55,681.98,0.57581753]
[1748499335226,0.29301882,682.55,681.99,0.57581753]
[1748499335525,0.29301882,682.55,682.0,0.57590954]
[1748499335726,0.29301882,682.55,681.97,0.365]
[1748499336126,0.29301882,682.55,681.98,0.57592637]
[1748499336427,0.29301882,682.55,681.99,0.57592635]
[1748499336626,0.29301882,682.55,682.0,0.57592635]
[1748499336931,0.29301882,682.55,681.97,0.365]
[1748499337325,0.29301882,682.55,681.98,0.57599515]
[1748499337530,0.29301882,682.55,681.97,0.365]
[1748499337826,0.29301882,682.55,681.98,0.57600336]
[1748499338031,0.29301882,682.55,681.99,0.57600021]
[1748499338226,0.29301882,682.55,681.97,0.365]
[1748499338426,0.29301882,682.55,681.98,0.57595392]
[1748499338628,0.29301882,682.55,681.97,0.365]
[1748499339031,0.29301882,682.55,681.98,0.5759436]
[1748499339231,0.29301882,682.55,681.97,0.365]
[1748499340234,0.29301882,682.55,681.98,0.5758758]
[1748499340434,0.29301882,682.55,681.97,0.365]
[1748499340933,0.29301882,682.55,681.98,0.5758754]
[1748499341129,0.29301882,682.55,681.99,0.57586873]
[1748499341334,0.29301882,682.55,682.0,0.57586873]
[1748499341535,0.29301882,682.55,681.97,0.365]
[1748499341737,0.29301882,682.55,681.98,0.57586562]
[1748499341932,0.29301882,682.55,681.99,0.57586562]
[1748499342138,0.29301882,682.55,682.0,0.57586413]
[1748499342333,0.29301882,682.55,681.97,0.365]
[1748499342639,0.29301882,682.55,681.98,0.57586562]
[1748499342838,0.29301882,682.55,681.99,0.5759669]
[1748499343137,0.29301882,682.55,682.0,0.57596675]
[1748499343339,0.29301882,682.55,682.01,0.57596675]
[1748499343539,0.29301882,682.55,682.02,0.57596675]
[1748499343840,0.29301882,682.55,681.97,0.365]
[1748499344032,0.29301882,682.55,681.98,0.57615455]
[1748499344233,0.29301882,682.55,681.99,0.57613436]
[1748499344536,0.29301882,682.55,681.97,0.365]
[1748499344841,0.29301882,682.55,681.98,0.57628929]
[1748499345042,0.29301882,682.55,681.99,0.57628712]
[1748499345236,0.29301882,682.55,681.97,0.365]
[1748499345441,0.29301882,682.55,681.98,0.57628688]
[1748499345641,0.29301882,682.55,681.99,0.57628688]
[1748499345836,0.29301882,682.55,681.97,0.365]
[1748499346040,0.29301882,682.55,681.98,0.57645749]
[1748499346241,0.29301882,682.55,681.97,0.365]
[1748499346437,0.29301882,682.55,681.98,0.57555488]
[1748499346640,0.29301882,682.55,681.97,0.365]
[1748499351543,0.29301882,682.55,681.94,0.5759576]
[1748499353545,0.29301882,682.55,681.95,0.525]
[1748499357549,0.29301882,682.55,681.96,0.57564762]
[1748499357854,0.29301882,682.55,681.95,0.525]
[1748499358150,0.29301882,682.55,681.96,0.57567719]
[1748499358453,0.29301882,682.55,681.95,0.525]
[1748499358655,0.29301882,682.55,681.96,0.57571353]
[1748499358853,0.29301882,682.55,681.96,0.555]
[1748499361556,0.29301882,682.55,681.97,0.57625975]
[1748499361758,0.29301882,682.55,681.96,0.555]
[1748499361957,0.29301882,682.55,681.97,0.57624924]
[1748499362156,0.29301882,682.55,681.96,0.555]
[1748499362354,0.29301882,682.55,681.97,0.57626037]
[1748499362559,0.29301882,682.55,681.96,0.555]
[1748499362754,0.29301882,682.55,681.97,0.57628629]
[1748499362955,0.29301882,682.55,681.96,0.555]
[1748499363158,0.29301882,682.55,681.97,0.57627747]
[1748499363360,0.29301882,682.55,681.96,0.555]
[1748499363561,0.29301882,682.55,681.97,0.57626885]
[1748499363758,0.29301882,682.55,681.96,0.555]
[1748499363959,0.29301882,682.55,681.97,0.57626459]
[1748499364161,0.29301882,682.55,681.96,0.555]
[1748499364761,0.29301882,682.55,681.97,0.57631975]
[1748499364960,0.29301882,682.55,681.96,0.555]
[1748499365456,0.29301882,682.55,681.97,0.57630761]
[1748499365661,0.29301882,682.55,681.96,0.555]
[1748499365960,0.29301882,682.55,681.97,0.57631623]
[1748499366158,0.29301882,682.55,681.96,0.555]
[1748499366358,0.29301882,682.55,681.97,0.57633571]
[1748499366564,0.29301882,682.55,681.96,0.555]
[1748499372862,0.25513571,682.41,681.96,0.555]
[1748499373065,0.29308323,682.4,681.96,0.555]
[1748499376963,0.29308323,682.4,681.95,0.525]
[1748499380572,0.29308323,682.4,681.96,0.382]
[1748499390778,0.25468198,682.3,681.96,0.382]
[1748499390979,0.29313048,682.29,681.96,0.382]
[1748499393479,0.29313048,682.29,681.97,0.525]
[1748499405587,0.29313048,682.29,681.98,0.57810217]
[1748499405783,0.29313048,682.29,681.97,0.525]
[1748499406086,0.29313048,682.29,681.98,0.5781019]
[1748499406288,0.29313048,682.29,681.97,0.525]
[1748499406491,0.29313048,682.29,681.98,0.5781149]
[1748499406688,0.29313048,682.29,681.97,0.525]
[1748499407690,0.29313048,682.29,681.98,0.57811525]
[1748499407886,0.29313048,682.29,681.97,0.525]